Cogmind - Beta 16 --- EXPLORER MODE // 2025.11.17 @ 11:51:03 Player: K.K.Y. Result: Destroyed by 9S-RHR(R) with Subdweller Beam Cannon Performance ------------- Evolutions (0) 0 Regions Visited (2) 400 Robots Destroyed (32) 160 Value Destroyed (820) 820 Prototype IDs (4) 80 Alien Tech Used (0) 0 Bonus (0) 0 TOTAL SCORE: 1460 Bonus ------- None Cogmind --------- Core Integrity 0/250 Matter 290/300 Energy 200/200 System Corruption 0% Temperature Cool (9) Movement Core (600) Ox11 Location -10/Subcaves Parts ------- > --- POWER (1) -------- Subdweller Power Source > --- PROPULSION (3) --- (None) > --- UTILITY (2) ------ Large Storage Unit Makeshift Light Armor Plating > --- WEAPON (2) ------- Spread Laser Ripper > --- INVENTORY (15) --- Heat Sink Light Humpback Light Humpback Weight Redist. System Light Armor Plating Hardened Light Armor Plating Hardened Light Armor Plating Makeshift Light Armor Plating Battle Rifle Barrage Gun Hammer Peak State ------------ > --- POWER ------------ Subdweller Power Source > --- PROPULSION ------- (None) > --- UTILITY ---------- Large Storage Unit Makeshift Light Armor Plating > --- WEAPON ----------- Spread Laser Ripper > --- INVENTORY -------- Heat Sink Light Humpback Light Humpback Weight Redist. System Light Armor Plating Hardened Light Armor Plating Hardened Light Armor Plating Makeshift Light Armor Plating Battle Rifle Barrage Gun Hammer [Rating: 15] Favorites ----------- Power Ion Engine Engine Ion Engine Propulsion Light Treads Treads Light Treads Utility Large Storage Unit Storage Large Storage Unit Protection Hardened Light Armor Plating Weapon Spread Laser Energy Gun Spread Laser Special Weapon Mining Laser Slashing Weapon Ripper Build | -11 -10 -10 ------- Run | Yrd Mat Sub Slots Evolved 1 | . 1 . Power . | . . . Propulsion 1 | . 1 . Utility . | . . . Weapon . | . . . Parts Attached 23 | . 10 13 Power 4 | . 1 3 Engine 4 | . 1 3 Core . | . . . Reactor . | . . . Propulsion 6 | . 3 3 Treads 6 | . 3 3 Leg . | . . . Wheel . | . . . Hover . | . . . Flight . | . . . Utility 6 | . 3 3 Device . | . . . Storage 3 | . 2 1 Processor . | . . . Hackware . | . . . Protection 3 | . 1 2 Artifact . | . . . Weapon 7 | . 3 4 Energy Gun 5 | . 3 2 Energy Cannon . | . . . Ballistic Gun . | . . . Ballistic Cannon . | . . . Launcher . | . . . Special Weapon 1 | . . 1 Impact Weapon . | . . . Slashing Weapon 1 | . . 1 Piercing Weapon . | . . . Special Melee Weapon . | . . . Unidentified Prototypes . | . . . Parts Lost 11 | . . 11 Power 2 | . . 2 Propulsion 3 | . . 3 Utility 2 | . . 2 Weapon 4 | . . 4 Highest Loss Streak 5 | . . 5 To Critical Strikes . | . . . Average Backups 10 | 2 7 11 Power . | . . . Propulsion . | 1 . . Utility 5 | . 2 8 Weapon 3 | . 3 3 Tool/Special . | . . . Unused Backups 13 | . 2 11 Power . | . . . Propulsion . | . . . Utility 8 | . . 8 Weapon 5 | . 2 3 Tool/Special . | . . . Average Slot Usage (%) 67 | . 80 59 Engine 4 | . 5 3 Treads 18 | . 35 7 Storage 11 | . 11 12 Protection 7 | . 2 11 Energy Gun 18 | . 24 14 Slashing Weapon 5 | . . 9 Peak Build Rating 15 | . 12 15 Average Rating 9 | . 7 11 On Entrance 4 | . . 12 Avg Prop Armor Cover (%) . | . . . Naked Turns 12 | . 12 . Heaviest Build 36 | . 35 36 Greatest Support 60 | 3 60 60 Greatest Overweight (x) 11 | . 1 11 Average Overweight (x) 2 | . . 6 Largest Inventory Capacity 25 | 5 15 25 Average Capacity 14 | 5 14 15 Most Carried 15 | 5 15 15 Average Carried 11 | 3 7 13 Final Capacity 15 | 5 15 15 Final Carried 15 | 5 15 13 Class Distribution -------------------- 100% | Hacker-Mutant Dominant Class ---------------- Hacker-Mutant | -10/Materials Hacker-Mutant | -10/Subcaves Resources | -11 -10 -10 ----------- Run | Yrd Mat Sub Matter Collected 470 | 172 168 130 Remotely . | . . . Salvage Created 737 | . 498 239 Parts 56 | . 45 11 Haulers Intercepted 1 | . 1 . Recyclers Shooed . | . . . Parts Field Recycled . | . . . Retrieved Matter . | . . . Parts Self-Destructed . | . . . Prevented . | . . . Parts Restored . | . . . Kills | -11 -10 -10 ------- Run | Yrd Mat Sub Combat Hostiles Destroyed 26 | . 14 12 Guns 25 | . 13 12 AOE 1 | . 1 . Classes Destroyed 6 | . 5 1 Hauler 1 | . 1 . Turret 2 | . . 2 Watcher 3 | . 3 . Swarmer 10 | . 8 2 Grunt 5 | . 5 . Subdweller 11 | . 1 10 Best Kill Streak 4 | . 3 4 Combat Bots Only 3 | . 3 2 Max Kills in Single Turn 1 | . 1 1 Gunslinging . | . . . Exploded 1 | . 1 . Melee . | . . . Uniques/NPCs Destroyed . | . . . Combat | -11 -10 -10 -------- Run | Yrd Mat Sub Hostile Shots Fired 222 | . 41 181 Missed 65 | . 11 54 Hits 157 | . 30 127 Projectile 157 | . 30 127 AOE 1 | . . 1 Critical Strikes 1 | . . 1 Damage Taken 1736 | . 188 1548 Core 251 | . 5 246 Absorbed by Shields . | . . . Ignored by Resistances 1041 | . 129 912 Core Remaining (%) 100 | 100 . . Volleys Fired 101 | . 38 63 Largest 2 | . 2 2 Hottest 165 | . 90 165 Shots Fired 152 | . 66 86 Gun 144 | . 66 78 Cannon . | . . . Launcher . | . . . Special 8 | . . 8 Kinetic . | . . . Thermal 112 | . 28 84 Explosive . | . . . Electromagnetic 40 | . 38 2 Robot Hit Streak 39 | . 17 39 Robot Miss Streak 2 | . 2 2 Penetration Max . | . . . Secondary Targets 3 | . 1 2 Max Gunslinging Chain 1 | . 1 1 Shots Hit Robots 130 | . 46 84 Core Hits 114 | . 26 88 Critical Kills . | . . . Critical Parts Destroyed . | . . . Critical Strikes 2 | . 2 . Burn 2 | . 2 . Melee Attacks 19 | . . 19 Impact . | . . . Slashing 19 | . . 19 Piercing . | . . . Sneak Attacks . | . . . Combat Hostiles . | . . . Follow-up Attacks . | . . . Damage Inflicted 2047 | . 591 1456 Guns 1719 | . 571 1148 Cannons . | . . . Explosions 20 | . 20 . Melee 212 | . . 212 Ramming . | . . . Kinetic . | . . . Thermal 1462 | . 218 1244 Explosive . | . . . Electromagnetic 373 | . 373 . Impact . | . . . Slashing 212 | . . 212 Piercing . | . . . Highest Corruption . | . . . Average Corruption . | . . . Corruption Purged . | . . . Corruption Blocked . | . . . Overload Shots . | . . . Overflow Damage . | . . . Projectiles . | . . . Explosions . | . . . Melee . | . . . Knockbacks . | . . . Impact . | . . . Kinetic . | . . . Secondary . | . . . Self-Inflicted Damage . | . . . Shots . | . . . Rammed . | . . . Targets Rammed . | . . . Kicked . | . . . Crushed . | . . . Highest Temperature 192 | . 120 192 Average Temperature 49 | . 40 60 Received Heat Transfer 1006 | . 84 922 Siege Activations . | . . . Martial Activations . | . . . Shielding Activations . | . . . Robots Disrupted . | . . . Combat Hostiles . | . . . Robots Corrupted . | . . . Combat Hostiles . | . . . Parts Fried 1 | . 1 . Impact Corruptions . | . . . Robots Melted . | . . . Combat Hostiles . | . . . Parts Melted 3 | . . 3 Heat Transferred 2350 | . 740 1610 Parts Sabotaged . | . . . Parts Stolen . | . . . Parts Stripped . | . . . Power Chain Reactions 1 | . 1 . Alert | -11 -10 -10 ------- Run | Yrd Mat Sub Maximum Alert Level . | . . . Low Security (%) 100 | 100 100 . Level 1 . | . . . Level 2 . | . . . Level 3 . | . . . Level 4 . | . . . Level 5 . | . . . High Security . | . . . Max Security . | . . . Peak Influence 70 | . 70 . Initial . | . . . Average 7 | . 7 . Influence Increases 505 | . 380 125 Destroy 0b10 Robot/C 340 | . 260 80 Destroy 0b10 Robot/NC 20 | . 20 . Destroy Leader 68 | . 68 . Successful Hack 29 | . 29 . Destroy Structure 3 | . 3 . Lose Combat Pursuer 45 | . . 45 Influence Decreases 505 | . 380 125 Time Decay 485 | . 380 105 Lost Part 20 | . . 20 Squads Dispatched 2 | . 2 . Investigation 2 | . 2 . Extermination . | . . . Reinforcement . | . . . Assault . | . . . Garrison . | . . . Intercept . | . . . Searches Triggered . | . . . Construction Impeded . | . . . Haulers Reinforced . | . . . Active Scanning Responses . | . . . Cargo Convoy Interrupts . | . . . Stealth | -11 -10 -10 --------- Run | Yrd Mat Sub Distress Signals 1 | . 1 . Communications Jammed . | . . . Distress Signals . | . . . Times Spotted 34 | . 18 16 Peak Tracking Total 4 | . 4 3 Tactical Retreats 2 | . . 2 Traps | -11 -10 -10 ------- Run | Yrd Mat Sub Traps Triggered 3 | . 2 1 Indirectly . | . . . Trap Hack Attempts . | . . . Triggered . | . . . Disarmed . | . . . Reprogrammed . | . . . Reused . | . . . Traps Extracted . | . . . Installed . | . . . Triggered . | . . . Machines | -11 -10 -10 ---------- Run | Yrd Mat Sub Machines Disabled . | . . . Max in Single Turn . | . . . Machines Repaired . | . . . Machines Dismantled . | . . . Machines Sabotaged . | . . . Overloaded Fab Kills . | . . . Hacking | -11 -10 -10 --------- Run | Yrd Mat Sub Machines Accessed 8 | . 8 . Terminals 8 | . 8 . Fabricators . | . . . Repair Stations . | . . . Recycling Units . | . . . Scanalyzers . | . . . Garrison Access . | . . . Total Hacks 29 | . 29 . Successful 23 | . 23 . Failed 6 | . 6 . Catastrophic 1 | . 1 . Database Lockouts . | . . . Manual . | . . . Terminals 29 | . 29 . Fabricators . | . . . Repair Stations . | . . . Recycling Units . | . . . Scanalyzers . | . . . Garrison Access . | . . . Terminal Hacks 23 | . 23 . Record 2 | . 2 . Robot Analysis 1 | . 1 . Prototype ID Bank 2 | . 2 . Branch Access Points 1 | . 1 . Emergency Access Points 3 | . 3 . Machine Index 1 | . 1 . Security Status 1 | . 1 . Reinforcement Status 1 | . 1 . Hauler Manifests 4 | . 4 . Registered Components 1 | . 1 . Zone Layout 6 | . 6 . Fabricator Hacks . | . . . Repair Station Hacks . | . . . Recycling Unit Hacks . | . . . Scanalyzer . | . . . Garrison Access Hacks . | . . . Unauthorized Hacks . | . . . Terminals . | . . . Fabricators . | . . . Repair Stations . | . . . Recycling Units . | . . . Scanalyzers . | . . . Garrison Access . | . . . Data Cores Recovered . | . . . Used . | . . . Hacking Detections 6 | . 6 . Full Trace Events 5 | . 5 . Feedback Events . | . . . Feedback Blocked . | . . . Robot Schematics Acquired . | . . . Robots Built . | . . . Authchips . | . . . Time . | . . . Total Robot Build Rating . | . . . Part Schematics Acquired . | . . . Parts Built . | . . . Authchips . | . . . Time . | . . . Total Part Build Rating . | . . . Part Studies Acquired . | . . . Parts Repaired . | . . . Time . | . . . Parts Recycled . | . . . Recycled Matter . | . . . Retrieved Matter . | . . . Retrieved Components . | . . . Parts Scanalyzed . | . . . Part Schematics Acquired . | . . . Parts Damaged . | . . . Bothacking | -11 -10 -10 ------------ Run | Yrd Mat Sub Used RIF Installer . | . . . Robots Hacked . | . . . Non-combat . | . . . Combat . | . . . Robot Hacks Applied . | . . . Relay Couplers Released . | . . . Fabnet Peak Effective % . | . . . Robots Rewired . | . . . Allies Hacked . | . . . Hacks Repelled . | . . . Allies | -11 -10 -10 -------- Run | Yrd Mat Sub Total Allies . | . . . Largest Group . | . . . Highest-Rated Group . | . . . Highest-Rated Ally . | . . . Total Orders . | . . . Ally Attacks . | . . . Total Damage . | . . . Kills . | . . . Allies Corrupted . | . . . Allies Melted . | . . . Intel | -11 -10 -10 ------- Run | Yrd Mat Sub Active Infowar (turns) . | . . . Robot Analysis Total 1 | . 1 . Derelict Logs Recovered 1 | . . 1 Drone Launches . | . . . Drone Recoveries . | . . . Exploration | -11 -10 -10 ------------- Run | Yrd Mat Sub Turns Passed 4774 | 22 1846 2906 Spaces Moved 1761 | 34 1081 646 Core 461 | 34 22 405 Treads 1300 | . 1059 241 Legs . | . . . Wheels . | . . . Hover . | . . . Flight . | . . . Fastest Speed 50 | 50 50 160 Average Speed 245 | 50 157 403 Slowest Speed 600 | 50 240 600 Overloaded Moves . | . . . Propulsion Burnouts . | . . . Robots Hopped . | . . . Potential Cave-ins 4 | . . 4 Cave-ins Triggered . | . . . Exploration Rate (%) 48 | 4 99 43 Regions Visited 2 Branch Regions 1 Pre-discovered Areas . | . . . Known Exits Taken 2 | 1 1 . Unknown Exits Taken . | . . . Scrap Searched 2 | . . 2 Spaces Dug . | . . . Terrain Destroyed 2 | . 2 . Melee . | . . . Projectile . | . . . AOE 2 | . 2 . Terrain Rammed . | . . . Walls Destroyed . | . . . Machines Disabled . | . . . Actions | -11 -10 -10 --------- Run | Yrd Mat Sub Total 2011 | 38 1158 815 Wait 50 | . . 50 Move 1759 | 33 1080 646 Hop . | . . . Pick Up 38 | 5 21 12 Fast Attach 4 | . 4 . Attach 17 | . 9 8 Detach 1 | . 1 . Swap 10 | . 1 9 Drop 12 | . 4 8 Fire 101 | . 38 63 Melee 19 | . . 19 Ram . | . . . Kick . | . . . Crush . | . . . Escape Stasis . | . . . Rewire . | . . . Trap . | . . . Miscellaneous . | . . . Route ------- -11/Scrapyard -10/Materials (discovered 5 exits: *Mat x3 / *Min / *Sub) -10/Subcaves (discovered 2 exits: *Mat / *Rec) History --------- Turn | Location | Event 11 | -11/Scrapyard | Identified exit to Materials 11 | -11/Scrapyard | Discovered exit to Materials (range 15) 23 | -11/Scrapyard | Entered Materials 23 | -10/Materials | Evolved 1 slot: Propulsion x1 32 | -10/Materials | Identified exit to Mines 32 | -10/Materials | Discovered exit to Mines (range 16) 305 | -10/Materials | Build established: Hacker-Mutant 366 | -10/Materials | Identified exit to Materials 366 | -10/Materials | Discovered exit to Materials (range 16) 823 | -10/Materials | Derelicts attacked the area 888 | -10/Materials | Discovered exit to Materials (range 16) 1187 | -10/Materials | Discovered exit to Materials (range 7) 1853 | -10/Materials | Identified exit to Subcaves 1853 | -10/Materials | Discovered exit to Subcaves (range 11) 1869 | -10/Materials | Entered Subcaves 1870 | -10/Subcaves | Approached by a straggling Scientist 1942 | -10/Subcaves | Ambushed by Subdweller buried in earth 2095 | -10/Subcaves | Shifting Twisted Machinery released Lgt. Humpback 2099 | -10/Subcaves | Shifting Twisted Machinery released Ripper 2130 | -10/Subcaves | Identified exit to Materials 2130 | -10/Subcaves | Discovered exit to Materials (range 10) 2265 | -10/Subcaves | Shifting Twisted Machinery released Barrage Gun 2269 | -10/Subcaves | Shifting Twisted Machinery released Sub. Optics 2310 | -10/Subcaves | A swath of the cavern ceiling suddenly collapsed 2441 | -10/Subcaves | Core integrity fell below 50% 2486 | -10/Subcaves | Lost 5 parts (3n1u1w) 3716 | -10/Subcaves | Disturbed a concealed Subdweller 3749 | -10/Subcaves | Learned Materials emergency access door positions 4144 | -10/Subcaves | Shifting Twisted Machinery released Piercing Trap 4157 | -10/Subcaves | Shifting Twisted Machinery released Flamer 4494 | -10/Subcaves | Identified exit to Recycling 4494 | -10/Subcaves | Discovered exit to Recycling (range 8) 4503 | -10/Subcaves | Core integrity fell below 20% 4775 | -10/Subcaves | Destroyed by 9S-RHR(R) with Subdweller Beam Cannon Last Messages --------------- 03776_ Acquired Mak. Light Armor Plating. Piercing Trap falls loose from the Twisted Machinery. Flamer falls loose from the Twisted Machinery. 04330_ 2I-ORX(u) tweaks Twisted Machinery. 04485_ S-10 Pest destroyed. 04494_ EXIT=FOUND: RECYCLING 04496_ Subatomizers dissect the Lgt. Ion Engine. 04498_ Hrd. Light Armor Plating destroyed. 04503_ Acquired 10 matter. 04508_ Spread Laser destroyed. 04510_ Acquired 7 matter. 04510_ Autobeam Turret destroyed. 04518_ Subatomizers dissect the Lgt. Assault Rifle. 04540_ Subatomizers dissect the Lgt. Ion Engine. 04543_ Acquired 3 matter. 04567_ Subatomizers dissect the Lgt. Ion Engine. 04628_ Acquired Sub. Power Source. Map ----- +----------------------------------------------------+ | ?????????????????????????????????????????????????? | | ?????????????????????????????????????????????????? | | ?????????????????????????????????????????????????? | | ?????????????????????# ?? ???????????????????????? | | ?????????? ???????## ?? ##?????????????????????? | | ?????????? ? #??# ? #?????????????????????? | | ?????????? ### #? #?????????????????????? | | ?????????? ? ## #?????????????????????? | | ?????????? ?? #????##???????????????? | | ????????? #???& #??? ##??????????????? | | ?????????# #???# ##?#% #??????????????? | | ????????## #???# ## ???????????????? | | ?####???# ##?## ????????????????? | | ## ??? ### ??????????????????? | | ### #??# #???????????????????? | | ?# ### #???????????????????? | | ??# #????????????????????? | | ????# #?# % #?????????????????????? | | ????# & #?????# #?????????????????????? | | #????# &%#???#### #?????????????????????? | | ###??# % ##?## #?????????????????????? | | #####% ### ## #?????????????????????? | | %[ = # #### ##????????????????????? | | [% #### %##??## %#????????????????????? | | #### * ##### ####???# ###????????????????????? | | #" = "### ##?????## @ #?????????????????????? | | # #?# #?????# #?????????????????????? | | # #?# ###?????##% R#?????????????????????? | | #" % % "#?###???????? ?????????????????????? | | #" " " "#??????????? ????????????????????? | | #"""" """"#??????????## ???????????????????? | | #####>#####??????????? # %#???????????????????? | | ????###??????????????? #% ???????????????????? | | ????????????????????? ## ## #??????????????????? | | ?????????????????????#? ?? # ??????????????????? | | #?????????????????????? ?? ??????????????????? | | #?????????????????????# ??? ? ?????????????????? | | #?????????????????????# ??? ?????????????????? | | ##?????????????????????? ??? ? ????????????????? | | ???????????????????????? ???????????????????????? | | ???????????????????????? ???????????????????????? | | ?????????????????????????????????????????????????? | | ?????????????????????????????????????????????????? | | ?????????????????????????????????????????????????? | | ?????????????????????????????????????????????????? | | ?????????????????????????????????????????????????? | | ?????????????????????????????????????????????????? | | ?????????????????????????????????????????????????? | | ?????????????????????????????????????????????????? | | ?????????????????????????????????????????????????? | +----------------------------------------------------+ Best States ------------- Heat Dissipation 25 Energy Generation 15 Energy Capacity 250 Matter Stores 300 Matter Capacity 300 Sight Range 16 Terrain Scan Density 10 Armor Coverage 150 Resistance: KI 35 Resistance: TH 35 Resistance: EX 35 Resistance: EM 35 Resistance: I 35 Resistance: S 35 Resistance: P 35 Evasion (%) 50 Recoil Reduction 3 Offensive Hacking 20 Item Schematics ----------------- None Robot Schematics ------------------ None Fabricated ------------ Nothing Repaired ---------- Nothing Studied --------- None Alien Tech Used ----------------- None Achievements -------------- None Challenges ------------ None Game ------ Seed InsulationMachineThruster Manual? 0 Play Time 00:14:10 Cumulative 100.6 hours Start 2025.11.17 @ 11:37:15 End 2025.11.17 @ 11:51:03 Sessions 1 Manual Loads 0 Difficulty Explorer Special Mode None Game No. 115 Rogue 0 Adventurer 0 Explorer 115 Win Type - Total 0 Types 0/0/0/0/0/0/0/0/0/0 Lore% 60 Gallery% 60 Achievement% 46 Wizard Run 0 Options --------- Layout 1 ASCII 0 Keyboard 0 Movement Mouse Keybinds 0 Fullscreen 1 Font 24/Smallcaps Map View 50x35 Zoom Use 0% Tactical HUD 1 Map Filters NONE Filters NONE Steam 1 RUN: 66b522ab-c874-4b85-9ec0-f214b759611f